[Event "Live Chess"]
[Site "Chess.com"]
[Date "2023.05.21"]
[Round "-"]
[White "NateSolon"]
[Black "Missedidea"]
[Result "1-0"]
[WhiteElo "2662"]
[BlackElo "1825"]
[TimeControl "300"]
[EndTime "18:36:01 PDT"]
[Termination "NateSolon won by checkmate"]

1. d4 {[%clk 0:04:59.3]} 1... Nf6 {[%clk 0:04:57.9]} 2. Nc3 {[%clk 0:04:58.3]}
2... c5 {[%clk 0:04:55.8]} 3. d5 {[%clk 0:04:57.5]} 3... d6 {[%clk 0:04:54.2]}
4. e4 {[%clk 0:04:56.8]} 4... g6 {[%clk 0:04:51.5]} 5. Nf3 {[%clk 0:04:56.1]}
5... Bg7 {[%clk 0:04:50]} 6. Bb5+ {[%clk 0:04:55.2]} 6... Bd7 {[%clk 0:04:48]}
7. a4 {[%clk 0:04:55.1]} 7... O-O {[%clk 0:04:45.4]} 8. O-O {[%clk 0:04:54.2]}
8... Bg4 {[%clk 0:04:42.2]} 9. Re1 {[%clk 0:04:48.4]} 9... a6 {[%clk 0:04:39.2]}
10. Bf1 {[%clk 0:04:47]} 10... Nbd7 {[%clk 0:04:36.1]} 11. h3 {[%clk 0:04:45.1]}
11... Bxf3 {[%clk 0:04:34.4]} 12. Qxf3 {[%clk 0:04:45]} 12... Ne5 {[%clk
0:04:32.9]} 13. Qd1 {[%clk 0:04:44.3]} 13... Rb8 {[%clk 0:04:28.6]} 14. Bf4
{[%clk 0:04:20.5]} 14... Qe8 {[%clk 0:04:19.2]} 15. Bh2 {[%clk 0:04:03.2]} 15...
Ned7 {[%clk 0:04:07.8]} 16. f4 {[%clk 0:03:58]} 16... b5 {[%clk 0:04:00.1]} 17.
axb5 {[%clk 0:03:55.5]} 17... axb5 {[%clk 0:03:58.2]} 18. e5 {[%clk 0:03:55]}
18... dxe5 {[%clk 0:03:54]} 19. fxe5 {[%clk 0:03:54.9]} 19... Nh5 {[%clk
0:03:51.6]} 20. g4 {[%clk 0:03:35.2]} 20... b4 {[%clk 0:03:49.8]} 21. Na4 {[%clk
0:03:29.6]} 21... Ra8 {[%clk 0:03:19.4]} 22. gxh5 {[%clk 0:03:24.3]} 22... Nxe5
{[%clk 0:03:12.9]} 23. Bxe5 {[%clk 0:03:19.6]} 23... Bxe5 {[%clk 0:03:10.5]} 24.
Rxe5 {[%clk 0:03:19.5]} 24... Rxa4 {[%clk 0:03:09]} 25. Rxa4 {[%clk 0:03:18.1]}
25... Qxa4 {[%clk 0:03:07.8]} 26. Rxe7 {[%clk 0:03:15.2]} 26... b3 {[%clk
0:03:02.1]} 27. cxb3 {[%clk 0:03:05.6]} 27... Qf4 {[%clk 0:02:54]} 28. Qg4
{[%clk 0:03:01.2]} 28... Qd2 {[%clk 0:02:38.6]} 29. Qe4 {[%clk 0:02:49.3]} 29...
Qxb2 {[%clk 0:02:31]} 30. Qe5 {[%clk 0:02:42.9]} 30... Qxb3 {[%clk 0:02:23.1]}
31. h6 {[%clk 0:02:39.9]} 31... f6 {[%clk 0:02:12.8]} 32. Qe6+ {[%clk 0:02:33]}
32... Kh8 {[%clk 0:02:10.7]} 33. Qxf6+ {[%clk 0:02:32.2]} 33... Rxf6 {[%clk
0:02:06]} 34. Re8+ {[%clk 0:02:31.4]} 34... Rf8 {[%clk 0:02:04.7]} 35. Rxf8#
{[%clk 0:02:31.3]} 1-0

[Event "Live Chess"]
[Site "Chess.com"]
[Date "2023.05.21"]
[Round "-"]
[White "xx_blindpuffin_xx"]
[Black "blowerd"]
[Result "1-0"]
[WhiteElo "2206"]
[BlackElo "1360"]
[TimeControl "300"]
[EndTime "18:36:07 PDT"]
[Termination "xx_blindpuffin_xx won by checkmate"]

1. d4 {[%clk 0:04:47.9]} 1... d5 {[%clk 0:04:58.3]} 2. Bf4 {[%clk 0:04:46.9]}
2... Nf6 {[%clk 0:04:54.3]} 3. e3 {[%clk 0:04:46]} 3... Bf5 {[%clk 0:04:53]} 4.
Nf3 {[%clk 0:04:45.1]} 4... Nc6 {[%clk 0:04:51.6]} 5. c4 {[%clk 0:04:43.1]} 5...
dxc4 {[%clk 0:04:47.7]} 6. Bxc4 {[%clk 0:04:40.9]} 6... e6 {[%clk 0:04:46.7]} 7.
Nc3 {[%clk 0:04:36.7]} 7... Bb4 {[%clk 0:04:45.3]} 8. O-O {[%clk 0:04:32.1]}
8... Bxc3 {[%clk 0:04:41]} 9. bxc3 {[%clk 0:04:32]} 9... O-O {[%clk 0:04:39.1]}
10. Bg5 {[%clk 0:04:23.6]} 10... h6 {[%clk 0:04:36.9]} 11. Bh4 {[%clk
0:04:21.9]} 11... g5 {[%clk 0:04:34.4]} 12. Bg3 {[%clk 0:04:20.5]} 12... Nh5
{[%clk 0:04:29.7]} 13. Bd3 {[%clk 0:04:16.6]} 13... Nxg3 {[%clk 0:04:19.8]} 14.
hxg3 {[%clk 0:03:53.4]} 14... Bxd3 {[%clk 0:04:16.6]} 15. Qxd3 {[%clk
0:03:40.6]} 15... e5 {[%clk 0:04:15.5]} 16. d5 {[%clk 0:03:36.6]} 16... Re8
{[%clk 0:03:59]} 17. e4 {[%clk 0:03:32.5]} 17... Nb8 {[%clk 0:03:50.8]} 18. Rab1
{[%clk 0:03:19.6]} 18... b6 {[%clk 0:03:48.4]} 19. Rfd1 {[%clk 0:02:57]} 19...
Nd7 {[%clk 0:03:42.1]} 20. g4 {[%clk 0:02:53.6]} 20... Nc5 {[%clk 0:03:39]} 21.
Qe3 {[%clk 0:02:51.1]} 21... Qf6 {[%clk 0:03:28.8]} 22. Nh2 {[%clk 0:02:48.2]}
22... Rad8 {[%clk 0:03:22.8]} 23. f3 {[%clk 0:02:43.1]} 23... Qf4 {[%clk
0:03:09.9]} 24. Nf1 {[%clk 0:02:36.8]} 24... Na4 {[%clk 0:02:55.2]} 25. Rb3
{[%clk 0:02:31.5]} 25... Nc5 {[%clk 0:02:46.6]} 26. Ra3 {[%clk 0:02:27.9]} 26...
a5 {[%clk 0:02:42]} 27. c4 {[%clk 0:02:23.8]} 27... Re6 {[%clk 0:02:13.9]} 28.
dxe6 {[%clk 0:02:02.6]} 28... Rxd1 {[%clk 0:02:11.1]} 29. e7 {[%clk 0:02:00.9]}
29... Qxe3+ {[%clk 0:02:07.3]} 30. Rxe3 {[%clk 0:01:59.3]} 30... Kg7 {[%clk
0:01:12.9]} 31. e8=Q {[%clk 0:01:51]} 31... Ne6 {[%clk 0:01:10.1]} 32. Qa4
{[%clk 0:01:43.2]} 32... Nf4 {[%clk 0:01:07.4]} 33. Qxd1 {[%clk 0:01:40.8]}
33... h5 {[%clk 0:01:04.2]} 34. gxh5 {[%clk 0:01:38.2]} 34... Kh6 {[%clk
0:01:02.6]} 35. Ng3 {[%clk 0:01:36.1]} 35... c5 {[%clk 0:00:55.5]} 36. Qd8
{[%clk 0:01:33.9]} 36... Ne6 {[%clk 0:00:51]} 37. Qh8# {[%clk 0:01:32.3]} 1-0

[Event "Live Chess"]
[Site "Chess.com"]
[Date "2023.05.21"]
[Round "-"]
[White "calcina"]
[Black "whatnot126"]
[Result "1/2-1/2"]
[WhiteElo "1586"]
[BlackElo "2051"]
[TimeControl "300"]
[EndTime "18:36:51 PDT"]
[Termination "Game drawn - timeout vs insufficient material"]

1. e4 {[%clk 0:04:58.6]} 1... d6 {[%clk 0:04:58.4]} 2. Nf3 {[%clk 0:04:56.4]}
2... Nf6 {[%clk 0:04:57.5]} 3. e5 {[%clk 0:04:51.2]} 3... dxe5 {[%clk
0:04:56.1]} 4. Bc4 {[%clk 0:04:47.3]} 4... g6 {[%clk 0:04:46.9]} 5. Nxe5 {[%clk
0:04:43.2]} 5... e6 {[%clk 0:04:45.6]} 6. d4 {[%clk 0:04:39.1]} 6... Bg7 {[%clk
0:04:44.2]} 7. Bg5 {[%clk 0:04:35.9]} 7... O-O {[%clk 0:04:42.7]} 8. Nc3 {[%clk
0:04:31.8]} 8... c5 {[%clk 0:04:41.7]} 9. d5 {[%clk 0:04:22.5]} 9... exd5 {[%clk
0:04:35.9]} 10. Nxd5 {[%clk 0:04:16.4]} 10... Re8 {[%clk 0:04:34.5]} 11. f4
{[%clk 0:03:58.1]} 11... Be6 {[%clk 0:04:20.9]} 12. Nxf6+ {[%clk 0:03:49.4]}
12... Bxf6 {[%clk 0:04:19]} 13. Qxd8 {[%clk 0:03:41.5]} 13... Bxd8 {[%clk
0:04:18]} 14. Bxd8 {[%clk 0:03:36.5]} 14... Bxc4 {[%clk 0:04:17]} 15. O-O-O
{[%clk 0:03:29.9]} 15... f6 {[%clk 0:04:15.5]} 16. Nxc4 {[%clk 0:03:24.1]} 16...
Nc6 {[%clk 0:04:13.4]} 17. Bxf6 {[%clk 0:03:17.6]} 17... Re2 {[%clk 0:04:09.8]}
18. g3 {[%clk 0:03:07.6]} 18... a5 {[%clk 0:04:05.1]} 19. Rde1 {[%clk
0:03:02.4]} 19... Rf2 {[%clk 0:04:02.6]} 20. h4 {[%clk 0:02:51.6]} 20... a4
{[%clk 0:04:01.3]} 21. h5 {[%clk 0:02:49.6]} 21... Kf7 {[%clk 0:03:58.2]} 22.
Bc3 {[%clk 0:02:38.8]} 22... Rd8 {[%clk 0:03:49.2]} 23. hxg6+ {[%clk 0:02:33.2]}
23... Kxg6 {[%clk 0:03:49.1]} 24. Rhf1 {[%clk 0:02:23.4]} 24... Rg2 {[%clk
0:03:47.9]} 25. f5+ {[%clk 0:02:21.1]} 25... Kf7 {[%clk 0:03:47]} 26. Ne5+
{[%clk 0:02:08.9]} 26... Nxe5 {[%clk 0:03:46.1]} 27. Bxe5 {[%clk 0:02:07.2]}
27... Rdd2 {[%clk 0:03:45.4]} 28. c3 {[%clk 0:02:00.4]} 28... Rc2+ {[%clk
0:03:43.6]} 29. Kb1 {[%clk 0:01:53]} 29... Rxb2+ {[%clk 0:03:43]} 30. Kc1 {[%clk
0:01:50.7]} 30... Rgc2+ {[%clk 0:03:41.8]} 31. Kd1 {[%clk 0:01:49.1]} 31... Rxa2
{[%clk 0:03:41.7]} 32. g4 {[%clk 0:01:44.9]} 32... Rcb2 {[%clk 0:03:40.8]} 33.
Kc1 {[%clk 0:01:42.1]} 33... Rc2+ {[%clk 0:03:39.9]} 34. Kb1 {[%clk 0:01:40.6]}
34... Rab2+ {[%clk 0:03:38.7]} 35. Ka1 {[%clk 0:01:38.7]} 35... a3 {[%clk
0:03:38.6]} 36. c4 {[%clk 0:01:35.2]} 36... Rb3 {[%clk 0:03:37.7]} 37. g5 {[%clk
0:01:29.8]} 37... Rg2 {[%clk 0:03:35]} 38. Rg1 {[%clk 0:01:21]} 38... Rxg1
{[%clk 0:03:23.6]} 39. Rxg1 {[%clk 0:01:18]} 39... Rb4 {[%clk 0:03:23.5]} 40.
g6+ {[%clk 0:01:14.5]} 40... hxg6 {[%clk 0:03:22.7]} 41. fxg6+ {[%clk
0:01:13.8]} 41... Kg8 {[%clk 0:03:22.1]} 42. Rg3 {[%clk 0:01:04.7]} 42... Rxc4
{[%clk 0:03:20]} 43. Rxa3 {[%clk 0:01:01]} 43... Kf8 {[%clk 0:03:19]} 44. g7+
{[%clk 0:00:56.9]} 44... Kf7 {[%clk 0:03:18.1]} 45. Ra8 {[%clk 0:00:53]} 45...
Rg4 {[%clk 0:03:17.2]} 46. Rf8+ {[%clk 0:00:48.7]} 46... Ke6 {[%clk 0:03:13.4]}
47. g8=Q+ {[%clk 0:00:42.4]} 47... Rxg8 {[%clk 0:03:11.1]} 48. Rxg8 {[%clk
0:00:41.7]} 48... Kxe5 {[%clk 0:03:10.9]} 49. Rb8 {[%clk 0:00:39.6]} 49... c4
{[%clk 0:03:08.7]} 50. Rxb7 {[%clk 0:00:38.3]} 50... Kd4 {[%clk 0:03:08.6]} 51.
Rc7 {[%clk 0:00:37.1]} 51... Kc3 {[%clk 0:03:08.5]} 52. Kb1 {[%clk 0:00:36.1]}
52... Kd2 {[%clk 0:03:07.5]} 53. Rxc4 {[%clk 0:00:33.9]} 53... Kd3 {[%clk
0:03:06.7]} 54. Rc8 {[%clk 0:00:31.5]} 54... Kd4 {[%clk 0:03:06.2]} 55. Kc2
{[%clk 0:00:30.4]} 55... Kd5 {[%clk 0:03:06.1]} 56. Kc3 {[%clk 0:00:29]} 56...
Kd6 {[%clk 0:03:06]} 57. Re8 {[%clk 0:00:26.2]} 57... Kd5 {[%clk 0:03:05.9]} 58.
Kd3 {[%clk 0:00:24.9]} 58... Kd6 {[%clk 0:03:05.5]} 59. Re4 {[%clk 0:00:23.4]}
59... Kd5 {[%clk 0:03:05.4]} 60. Rg4 {[%clk 0:00:21.2]} 60... Kc5 {[%clk
0:03:05.3]} 61. Kc3 {[%clk 0:00:19.9]} 61... Kd5 {[%clk 0:03:04.9]} 62. Kd3
{[%clk 0:00:17.1]} 62... Ke5 {[%clk 0:03:04.4]} 63. Ke3 {[%clk 0:00:15.4]} 63...
Kd5 {[%clk 0:03:04]} 64. Ra4 {[%clk 0:00:14.7]} 64... Kc5 {[%clk 0:03:03.4]} 65.
Ra5+ {[%clk 0:00:13.9]} 65... Kb4 {[%clk 0:03:02.2]} 66. Re5 {[%clk 0:00:11.4]}
66... Kc4 {[%clk 0:03:02.1]} 67. Ke4 {[%clk 0:00:10.3]} 67... Kc3 {[%clk
0:03:01.3]} 68. Rd5 {[%clk 0:00:09.5]} 68... Kc4 {[%clk 0:03:00.8]} 69. Rd4+
{[%clk 0:00:07.3]} 69... Kc3 {[%clk 0:03:00.3]} 70. Ke3 {[%clk 0:00:06.1]} 70...
Kc2 {[%clk 0:02:59.8]} 71. Rd3 {[%clk 0:00:04.9]} 71... Kc1 {[%clk 0:02:59.5]}
72. Ke2 {[%clk 0:00:04.1]} 72... Kb2 {[%clk 0:02:59.4]} 73. Re3 {[%clk
0:00:02.4]} 73... Kc2 {[%clk 0:02:59.3]} 74. Rg3 {[%clk 0:00:01]} 74... Kc1
{[%clk 0:02:58.7]} 1/2-1/2

[Event "Live Chess"]
[Site "Chess.com"]
[Date "2023.05.21"]
[Round "-"]
[White "romchyk1219"]
[Black "Hussamalhaidar"]
[Result "0-1"]
[WhiteElo "639"]
[BlackElo "1099"]
[TimeControl "300"]
[EndTime "18:37:03 PDT"]
[Termination "Hussamalhaidar won by checkmate"]

1. e4 {[%clk 0:04:58.9]} 1... e6 {[%clk 0:04:56.4]} 2. d4 {[%clk 0:04:56]} 2...
d5 {[%clk 0:04:55.4]} 3. e5 {[%clk 0:04:54.5]} 3... c5 {[%clk 0:04:54.7]} 4. Nf3
{[%clk 0:04:53.5]} 4... Nc6 {[%clk 0:04:51]} 5. c3 {[%clk 0:04:47]} 5... cxd4
{[%clk 0:04:44]} 6. Nxd4 {[%clk 0:04:43.8]} 6... Nxd4 {[%clk 0:04:41.3]} 7. cxd4
{[%clk 0:04:43.7]} 7... Qa5+ {[%clk 0:04:39.3]} 8. Bd2 {[%clk 0:04:40]} 8... Bb4
{[%clk 0:04:38.6]} 9. Bxb4 {[%clk 0:04:38.8]} 9... Qxb4+ {[%clk 0:04:37.5]} 10.
Qd2 {[%clk 0:04:35.2]} 10... Qxd2+ {[%clk 0:04:34.3]} 11. Nxd2 {[%clk
0:04:33.9]} 11... Ne7 {[%clk 0:04:33.7]} 12. Bb5+ {[%clk 0:04:30.9]} 12... Bd7
{[%clk 0:04:30.3]} 13. Bxd7+ {[%clk 0:04:30.5]} 13... Kxd7 {[%clk 0:04:29.3]}
14. Nb3 {[%clk 0:04:28.3]} 14... Rac8 {[%clk 0:04:27.6]} 15. Nc5+ {[%clk
0:04:26.6]} 15... Kc6 {[%clk 0:04:20.6]} 16. Rc1 {[%clk 0:04:17.7]} 16... Kb5
{[%clk 0:04:09.5]} 17. Nb3 {[%clk 0:04:09.9]} 17... Rxc1+ {[%clk 0:04:03.3]} 18.
Nxc1 {[%clk 0:04:09.8]} 18... Rc8 {[%clk 0:04:01.6]} 19. O-O {[%clk 0:04:05.5]}
19... Rc2 {[%clk 0:03:59.1]} 20. b3 {[%clk 0:04:00.9]} 20... Nf5 {[%clk
0:03:53.4]} 21. Rd1 {[%clk 0:03:57]} 21... Nxd4 {[%clk 0:03:43.2]} 22. a4+
{[%clk 0:03:53.7]} 22... Kb4 {[%clk 0:03:24.1]} 23. h3 {[%clk 0:03:47.6]} 23...
Nxb3 {[%clk 0:03:00.9]} 24. Nxb3 {[%clk 0:03:44.3]} 24... Kxb3 {[%clk
0:02:58.8]} 25. Rd3+ {[%clk 0:03:44.2]} 25... Rc3 {[%clk 0:02:56]} 26. Rxc3+
{[%clk 0:03:43.4]} 26... Kxc3 {[%clk 0:02:54.4]} 27. Kf1 {[%clk 0:03:42.5]}
27... Kb3 {[%clk 0:02:53.1]} 28. Ke2 {[%clk 0:03:42.1]} 28... Kxa4 {[%clk
0:02:52.3]} 29. Kd3 {[%clk 0:03:41.7]} 29... Kb3 {[%clk 0:02:51.5]} 30. f4
{[%clk 0:03:39.1]} 30... a5 {[%clk 0:02:50.5]} 31. g3 {[%clk 0:03:38.3]} 31...
a4 {[%clk 0:02:49.4]} 32. Kd2 {[%clk 0:03:38.2]} 32... a3 {[%clk 0:02:48.6]} 33.
Kc1 {[%clk 0:03:38.1]} 33... b5 {[%clk 0:02:46.4]} 34. Kb1 {[%clk 0:03:36.7]}
34... b4 {[%clk 0:02:45]} 35. Ka1 {[%clk 0:03:36.2]} 35... Kc3 {[%clk
0:02:42.9]} 36. g4 {[%clk 0:03:35.7]} 36... b3 {[%clk 0:02:40.5]} 37. f5 {[%clk
0:03:33]} 37... d4 {[%clk 0:02:32.1]} 38. fxe6 {[%clk 0:03:30.4]} 38... fxe6
{[%clk 0:02:30.4]} 39. g5 {[%clk 0:03:29.4]} 39... g6 {[%clk 0:02:26.3]} 40. h4
{[%clk 0:03:27.5]} 40... d3 {[%clk 0:02:24]} 41. h5 {[%clk 0:03:26.3]} 41...
gxh5 {[%clk 0:02:22.6]} 42. g6 {[%clk 0:03:25.6]} 42... hxg6 {[%clk 0:02:18.8]}
43. Kb1 {[%clk 0:03:24.3]} 43... d2 {[%clk 0:02:15.2]} 44. Ka1 {[%clk
0:03:23.1]} 44... d1=Q# {[%clk 0:02:12.9]} 0-1

[Event "Live Chess"]
[Site "Chess.com"]
[Date "2023.05.21"]
[Round "-"]
[White "luckywookie"]
[Black "jimwad"]
[Result "1-0"]
[WhiteElo "769"]
[BlackElo "1227"]
[TimeControl "300"]
[EndTime "18:37:11 PDT"]
[Termination "luckywookie won by resignation"]

1. e4 {[%clk 0:04:55.3]} 1... e5 {[%clk 0:04:58.8]} 2. c3 {[%clk 0:04:50.8]}
2... Nf6 {[%clk 0:04:53.8]} 3. d3 {[%clk 0:04:48.7]} 3... Nc6 {[%clk 0:04:52.1]}
4. Nf3 {[%clk 0:04:46.1]} 4... d6 {[%clk 0:04:50.3]} 5. g3 {[%clk 0:04:45.2]}
5... Bg4 {[%clk 0:04:48.3]} 6. Bg2 {[%clk 0:04:43.2]} 6... h6 {[%clk 0:04:45.2]}
7. O-O {[%clk 0:04:34.3]} 7... Qd7 {[%clk 0:04:41.6]} 8. d4 {[%clk 0:04:11.3]}
8... exd4 {[%clk 0:04:38.8]} 9. cxd4 {[%clk 0:04:09.3]} 9... O-O-O {[%clk
0:04:35.5]} 10. Qd3 {[%clk 0:03:56.7]} 10... Re8 {[%clk 0:04:15.1]} 11. Re1
{[%clk 0:03:50.8]} 11... g5 {[%clk 0:04:12.6]} 12. a3 {[%clk 0:03:28.5]} 12...
Kb8 {[%clk 0:04:08.6]} 13. Be3 {[%clk 0:03:25.4]} 13... Nxe4 {[%clk 0:04:03.1]}
14. d5 {[%clk 0:03:15.5]} 14... Nd8 {[%clk 0:03:53.7]} 15. Bxa7+ {[%clk
0:03:04.5]} 15... Ka8 {[%clk 0:03:49.9]} 16. Bd4 {[%clk 0:03:01.2]} 16... f6
{[%clk 0:03:40]} 17. Rxe4 {[%clk 0:02:59.4]} 17... Rxe4 {[%clk 0:03:36.4]} 18.
Qxe4 {[%clk 0:02:58]} 18... Bg7 {[%clk 0:03:31.2]} 19. Nbd2 {[%clk 0:02:50.8]}
19... Re8 {[%clk 0:03:27.7]} 20. Qd3 {[%clk 0:02:34.6]} 20... Bf5 {[%clk
0:03:16.7]} 21. Qc3 {[%clk 0:02:21.3]} 21... Kb8 {[%clk 0:03:14.2]} 22. Bxf6
{[%clk 0:02:05.3]} 22... Bxf6 {[%clk 0:03:08.7]} 23. Qxf6 {[%clk 0:02:03.4]}
23... Qh7 {[%clk 0:02:26.3]} 24. Re1 {[%clk 0:01:41.2]} 24... Rxe1+ {[%clk
0:02:23.5]} 25. Nxe1 {[%clk 0:01:39.7]} 25... Bd7 {[%clk 0:02:10.2]} 26. Qxd8+
{[%clk 0:01:37.7]} 26... Ka7 {[%clk 0:02:07.5]} 1-0

[Event "Live Chess"]
[Site "Chess.com"]
[Date "2023.05.21"]
[Round "-"]
[White "wot-not"]
[Black "ClassyChameleon"]
[Result "1-0"]
[WhiteElo "1542"]
[BlackElo "1091"]
[TimeControl "300"]
[EndTime "18:37:31 PDT"]
[Termination "wot-not won on time"]

1. e4 {[%clk 0:04:59]} 1... e5 {[%clk 0:04:58.7]} 2. f4 {[%clk 0:04:58.3]} 2...
Nc6 {[%clk 0:04:57.7]} 3. Nf3 {[%clk 0:04:58]} 3... exf4 {[%clk 0:04:56.1]} 4.
d4 {[%clk 0:04:57.2]} 4... d5 {[%clk 0:04:53.6]} 5. e5 {[%clk 0:04:55.9]} 5...
Bb4+ {[%clk 0:04:50.5]} 6. Nbd2 {[%clk 0:04:53.3]} 6... Nge7 {[%clk 0:04:45.6]}
7. Bd3 {[%clk 0:04:51.8]} 7... Nf5 {[%clk 0:04:43.1]} 8. Bxf5 {[%clk 0:04:51]}
8... Bxf5 {[%clk 0:04:42.8]} 9. O-O {[%clk 0:04:49.8]} 9... O-O {[%clk 0:04:40]}
10. c3 {[%clk 0:04:49.2]} 10... Ba5 {[%clk 0:04:36.9]} 11. Nb3 {[%clk
0:04:48.6]} 11... Bb6 {[%clk 0:04:34.8]} 12. Bd2 {[%clk 0:04:48.1]} 12... a6
{[%clk 0:04:32.9]} 13. Be1 {[%clk 0:04:47.4]} 13... Bg4 {[%clk 0:04:29.8]} 14.
h3 {[%clk 0:04:43.8]} 14... Bh5 {[%clk 0:04:28.7]} 15. Qd3 {[%clk 0:04:41.8]}
15... Ne7 {[%clk 0:04:15.4]} 16. Bh4 {[%clk 0:04:40.2]} 16... f6 {[%clk
0:04:12.2]} 17. Rae1 {[%clk 0:04:33.6]} 17... Bg6 {[%clk 0:03:56]} 18. Qd2
{[%clk 0:04:24]} 18... Nf5 {[%clk 0:03:51.6]} 19. Bf2 {[%clk 0:04:09.6]} 19...
Ng3 {[%clk 0:03:06.5]} 20. Bxg3 {[%clk 0:04:05.4]} 20... fxg3 {[%clk 0:03:06]}
21. Nh4 {[%clk 0:03:59.6]} 21... Be4 {[%clk 0:02:56.3]} 22. exf6 {[%clk
0:03:44.6]} 22... Rxf6 {[%clk 0:02:51.4]} 23. Rxf6 {[%clk 0:03:42.5]} 23... Qxf6
{[%clk 0:02:50.3]} 24. Rf1 {[%clk 0:03:41.4]} 24... Qxh4 {[%clk 0:02:43.2]} 25.
Nc1 {[%clk 0:03:28.9]} 25... Rf8 {[%clk 0:02:09.4]} 26. Rxf8+ {[%clk 0:03:18.9]}
26... Kxf8 {[%clk 0:02:06.6]} 27. Ne2 {[%clk 0:03:18.2]} 27... g5 {[%clk
0:01:53.6]} 28. Qe3 {[%clk 0:03:12.1]} 28... Ke8 {[%clk 0:01:46.1]} 29. Nxg3
{[%clk 0:03:09.3]} 29... Kd8 {[%clk 0:01:33.7]} 30. Qf2 {[%clk 0:02:42]} 30...
Bg6 {[%clk 0:01:11.2]} 31. Qf8+ {[%clk 0:02:30.6]} 31... Be8 {[%clk 0:01:03.1]}
32. Qf6+ {[%clk 0:02:24.5]} 32... Kc8 {[%clk 0:00:44.9]} 33. Nf5 {[%clk
0:02:22.4]} 33... Qe1+ {[%clk 0:00:38.5]} 34. Kh2 {[%clk 0:02:20.5]} 34... Kb8
{[%clk 0:00:26.6]} 35. Qxg5 {[%clk 0:02:10]} 35... c6 {[%clk 0:00:17.9]} 36. Nd6
{[%clk 0:01:58]} 36... Bg6 {[%clk 0:00:16.6]} 37. Qg3 {[%clk 0:01:47]} 37...
Qxg3+ {[%clk 0:00:10.7]} 38. Kxg3 {[%clk 0:01:46.4]} 38... Bc7 {[%clk
0:00:10.5]} 39. Kg4 {[%clk 0:01:43.8]} 39... Bxd6 {[%clk 0:00:10.1]} 40. g3
{[%clk 0:01:43.6]} 40... Be7 {[%clk 0:00:08.6]} 41. h4 {[%clk 0:01:42.9]} 41...
Bxh4 {[%clk 0:00:07.8]} 42. gxh4 {[%clk 0:01:41.5]} 42... Kc7 {[%clk 0:00:07.6]}
43. h5 {[%clk 0:01:41.2]} 43... Kd6 {[%clk 0:00:07.3]} 44. hxg6 {[%clk
0:01:40.4]} 44... hxg6 {[%clk 0:00:07]} 45. Kg5 {[%clk 0:01:40]} 45... Ke6
{[%clk 0:00:06.6]} 46. Kxg6 {[%clk 0:01:39.5]} 46... b6 {[%clk 0:00:05.1]} 47.
Kg5 {[%clk 0:01:38.1]} 47... c5 {[%clk 0:00:04.8]} 48. Kf4 {[%clk 0:01:36.9]}
48... b5 {[%clk 0:00:03.7]} 49. Ke3 {[%clk 0:01:35.6]} 49... cxd4+ {[%clk
0:00:03.1]} 50. Kxd4 {[%clk 0:01:34.1]} 50... Kd6 {[%clk 0:00:02.7]} 51. b3
{[%clk 0:01:32.6]} 51... Kc6 {[%clk 0:00:01.8]} 52. a3 {[%clk 0:01:31.8]} 52...
a5 {[%clk 0:00:01.5]} 53. Kd3 {[%clk 0:01:31.1]} 53... b4 {[%clk 0:00:01.1]} 54.
axb4 {[%clk 0:01:30]} 54... axb4 {[%clk 0:00:00.8]} 55. cxb4 {[%clk 0:01:29.5]}
55... Kb5 {[%clk 0:00:00.5]} 56. Kc3 {[%clk 0:01:28.9]} 1-0